[Event "Reykjavik Open 2022"]
[Site "Reykjavik"]
[Date "2022.04.10"]
[Round "6.26"]
[White "Briem, Benedikt"]
[Black "Martin, Julian"]
[Result "1/2-1/2"]
[ECO "E04"]
[WhiteElo "2079"]
[BlackElo "2388"]
[Annotator "TA"]
[PlyCount "158"]
[EventDate "2022.04.06"]
[EventCountry "ISL"]
[SourceTitle "playchess.com"]
[Source "ChessBase"]
[SourceQuality "1"]
[TimeControl "40/5400+30:1800+30"]

{[%evp 12,158,0,0,23,37,58,61,152,152,143,157,343,191,206,214,265,238,264,253,254,279,280,287,282,274,280,256,295,281,320,275,294,278,279,212,219,219,212,204,210,185,281,271,244,206,369,351,407,348,439,402,333,155,155,157,187,180,180,166,282,282,282,282,947,947,748,947,852,741,730,640,220,220,220,220,220,220,940,868,933,933,932,932,845,831,831,823,761,93,93,93,93,93,93,93,93,93,93,93,93,93,93,93,93,93,93,93,93,93,93,93,93,93,93,93,93,93,93,93,93,93,93,93,93,40,93,40,93,40,93,8,8,8,8,8,8,8,8,8,8,8,8,0,0,0,0,0,0]} 1. d4 {[%emt 0:00:06]} Nf6 {[%emt 0:04:18]} 2. c4 {[%emt 0:00:03]} e6 {[%emt 0:00:11]} 3. g3 {[%emt 0:01:01]} Bb4+ {[%emt 0:00:06]} 4. Nd2 {[%emt 0:01:32]} O-O {[%emt 0:01:39]} 5. Bg2 {[%emt 0:00:37]} d5 {[%emt 0:01:29]} 6. Ngf3 {[%emt 0:00:11]} dxc4 {[%emt 0:09:30]} 7. Qc2 {[%emt 0:01:06]} b5 {[%emt 0:02:54] E04: Open Catalan: 5 Nf3.} 8. a4 $1 {[%emt 0:01:32]} c6 {[%emt 0:01:29]} 9. axb5 {[%emt 0:00:31]} cxb5 {[%emt 0:00:10]} (9... Bb7 $14) 10. Ng5 $16 {[%emt 0:00:18]} h6 {[%emt 0:02:19][%cal Oh6g5]} 11. h4 {[%emt 0:01:52][%cal Oe1f1] &Bianco is more active.} g6 $2 {[%emt 0:03:28] [#]} (11... hxg5 $2 12. hxg5 g6 13. gxf6 $18) (11... Qxd4 $16 12. Bxa8 a6) 12. Nxf7 $1 {[%emt 0:03:26][%mdl 512]} Rxf7 $18 {[%emt 0:05:18]} 13. Bxa8 {[%emt 0:02:02] And now Kf1 would win.} Kg7 {[%emt 0:00:13]} 14. O-O {[%emt 0:30:18] [#]} a5 $146 {[%emt 0:00:33]} ({Predecessor:} 14... Qb6 15. Bg2 Bb7 16. Bxb7 Rxb7 17. Nf3 Nc6 18. Rd1 Bd6 19. Bf4 Bxf4 20. gxf4 Rf7 {1-0 (33) Karner,C (2322)-Taggatz,M (2331) Austria 2010}) 15. Nf3 {[%emt 0:06:15] Black must now prevent Ne5.} Nbd7 {[%emt 0:02:41]} 16. Bf4 {[%emt 0:12:17]} Nd5 {[%emt 0:02:52]} 17. Be5+ {[%emt 0:13:47]} Nxe5 {[%emt 0:01:15]} 18. Nxe5 {[%emt 0:00:46]} (18. dxe5 $6 Bd7 $16) 18... Rf6 {[%emt 0:00:35]} 19. Nc6 {[%emt 0:09:14]} Qb6 {[%emt 0:01:48]} 20. Nxb4 {[%emt 0:01:01]} Nxb4 {[%emt 0:02:20]} 21. Qd2 {[%emt 0:01:49]} Bd7 {[%emt 0:07:29]} 22. Ra3 {[%emt 0:01:55]} Bc6 {[%emt 0:04:24] [#]} 23. Rfa1 $1 {[%emt 0:03:00]} Bxa8 {[%emt 0:04:02]} 24. Rxa5 {[%emt 0:00:14]} Bb7 {[%emt 0:00:24]} 25. Qxb4 {[%emt 0:01:18]} (25. Ra7 $2 Nc6 26. Rxb7+ Qxb7 $19) 25... Qxd4 {[%emt 0:00:04][%csl Gf6][%cal Rd4f2]} 26. Qe1 {[%emt 0:01:47]} (26. Qe7+ $2 Rf7 27. Qxf7+ (27. e3 $2 Qxb2 28. Qxf7+ Kxf7 $19) 27... Kxf7 $19) 26... Qxb2 {[%emt 0:08:03]} (26... Qb6 $142 27. Ra7 Kg8) 27. Rb1 {[%emt 0:00:24][%cal Ba1b1,Bb1b5,Bb5c5][%mdl 32]} (27. Ra7 Rf7 $11) 27... Qd4 {[%emt 0:00:19]} 28. Rbxb5 {[%emt 0:00:52]} Bd5 {[%emt 0:00:31]} (28... Rf7 {was necessary.} 29. Ra3 e5) 29. Rc5 {[%emt 0:00:59]} g5 {[%emt 0:06:57]} 30. h5 {[%emt 0:01:10]} Rf5 {[%emt 0:08:34]} 31. Ra7+ {[%emt 0:02:41]} Kf6 {[%emt 0:00:13]} 32. Qa1 {[%emt 0:01:51]} (32. Rcc7 $1 $18 {and the rest is easy.} g4 33. Rf7+ Kg5 34. Qc1+ Kxh5 35. Rxf5+ exf5 36. Ra6) 32... Qxa1+ $16 {[%emt 0:00:21]} 33. Rxa1 {[%emt 0:00:02][%mdl 4096] Endgame KRR-KRB. The board is on fire.} Re5 {[%emt 0:00:07]} 34. Re1 {[%emt 0:00:53] Hoping for f3.} g4 {[%emt 0:00:30] Against f3} 35. e4 {[%emt 0:00:35]} Rxe4 {[%emt 0:01:55]} (35... Ke7 $142 36. Rc7+ Kd6) 36. Rxe4 $18 {[%emt 0:00:09]} Bxe4 {[%emt 0:00:02]} 37. Rxc4 {[%emt 0:00:13] KR-KB} Bf3 {[%emt 0:00:28]} (37... Bf5 38. f4 gxf3) 38. Rc8 {[%emt 0:01:05]} Kg5 {[%emt 0:00:26]} 39. Rg8+ {[%emt 0:00:33]} Kxh5 {[%emt 0:00:09]} 40. Kf1 {[%emt 0:00:00]} Be4 {[%emt 0:00:00]} 41. Ke2 {[%emt 0:05:37] Strongly threatening Ke3.} Bg6 {[%emt 0:01:23]} 42. Ke3 {[%emt 0:03:06] Intending Kd4 and mate.} e5 {[%emt 0:02:29]} 43. Kd2 {[%emt 0:06:40]} Kg5 {[%emt 0:00:12]} 44. Kc3 {[%emt 0:00:46]} Kf5 $2 {[%emt 0:06:20]} (44... Kf6 45. Kb4 Kf7) 45. Kb4 {[%emt 0:00:49]} h5 {[%emt 0:01:08]} 46. Kc5 {[%emt 0:03:03]} Bf7 {[%emt 0:00:08]} 47. Rf8 {[%emt 0:00:42]} Ke6 {[%emt 0:00:10]} 48. Rb8 {[%emt 0:01:47]} Kf5 {[%emt 0:01:46]} 49. Kd6 {[%emt 0:01:58]} Ke4 {[%emt 0:01:28]} 50. Rb4+ $2 {[%emt 0:02:01]} (50. Rb7 $18 Bg6 51. Rb3) 50... Kf3 $16 {[%emt 0:00:53]} 51. Kxe5 {[%emt 0:01:06]} Kxf2 {[%emt 0:00:10] [#]} 52. Kf4 $1 {[%emt 0:03:39] White wants to mate with Rb2+.} ({Much weaker is} 52. Rf4+ $6 Kxg3 53. Rxf7 h4 $11) 52... Kg2 {[%emt 0:00:24]} 53. Rb7 {[%emt 0:02:03]} Be8 {[%emt 0:00:54]} 54. Rb3 {[%emt 0:04:12]} Kh3 {[%emt 0:01:44]} 55. Re3 {[%emt 0:00:25]} Bf7 {[%emt 0:00:48]} 56. Re7 {[%emt 0:00:23]} Bg6 {[%emt 0:00:09]} 57. Rg7 {[%emt 0:00:43]} Be8 {[%emt 0:00:13]} 58. Ra7 {[%emt 0:00:27]} Bg6 {[%emt 0:00:57]} 59. Re7 {[%emt 0:00:09]} Kg2 {[%emt 0:00:49]} 60. Re2+ {[%emt 0:00:45]} Kh3 {[%emt 0:00:13]} 61. Re6 {[%emt 0:00:34]} Bf7 {[%emt 0:00:08]} 62. Rd6 {[%emt 0:00:29]} Be8 {[%emt 0:00:29]} 63. Rd1 {[%emt 0:00:32]} Bf7 {[%emt 0:01:16]} 64. Ra1 {[%emt 0:00:30]} Be8 {[%emt 0:00:00]} 65. Ra3 {[%emt 0:00:12]} Bf7 {[%emt 0:00:00]} 66. Re3 {[%emt 0:00:15]} Kg2 {[%emt 0:00:35]} 67. Kg5 {[%emt 0:00:17]} Kh3 {[%emt 0:01:12][%cal Oh5h4]} 68. Ra3 {[%emt 0:00:25]} (68. Re7 $16 Bb3 69. Kf4 (69. Kxh5 Kxg3 70. Rg7 Bd1 $11)) 68... Be8 {[%emt 0:00:14] [#]} (68... h4 $1 $14) 69. Rc3 {[%emt 0:00:06]} (69. Ra8 $1 $16 {[%cal Ra8e8]} Bc6 70. Ra6) 69... Bf7 {[%emt 0:00:36]} (69... h4 $1 $14) 70. Re3 {[%emt 0:00:04]} (70. Kf4 $16) 70... Bd5 {[%emt 0:02:38]} ({Black should play} 70... h4 $1 $14) 71. Rd3 {[%emt 0:00:56]} ({Much worse is} 71. Kxh5 $6 Bf3 $11) ({White should try} 71. Re5 $16 Ba2 72. Re3) 71... Bf3 $11 {[%emt 0:02:22] The position is equal.} 72. Kf4 {[%emt 0:00:04] Threatening mate with Rd8.} h4 {[%emt 0:00:20]} 73. gxh4 {[%emt 0:00:37]} Kxh4 {[%emt 0:00:06]} 74. Rd8 {[%emt 0:00:28][%cal Rd8h8]} Kh3 {[%emt 0:00:17]} 75. Rh8+ {[%emt 0:00:06]} Kg2 {[%emt 0:00:08]} 76. Rh6 {[%emt 0:00:21]} Be2 {[%emt 0:00:16]} 77. Rb6 {[%emt 0:00:16]} Kf2 {[%emt 0:00:23]} 78. Rb3 {[%emt 0:00:34]} Bf3 {[%emt 0:00:13]} 79. Rb2+ {[%emt 0:00:04]} Be2 {[%emt 0:00:07] Blacks defense is rewarded with a draw.  Weighted Error Value: White=0.28 (precise) /Black=0.23 (precise)} 1/2-1/2

[Event "Reykjavik Open 2022"]
[Site "Reykjavik"]
[Date "2022.04.10"]
[Round "6.27"]
[White "Vardaan Nagpal"]
[Black "Khoury, Theo"]
[Result "1-0"]
[ECO "A28"]
[WhiteElo "2378"]
[BlackElo "1878"]
[Annotator "TA"]
[PlyCount "117"]
[EventDate "2022.04.06"]
[EventCountry "ISL"]
[SourceTitle "playchess.com"]
[Source "ChessBase"]
[SourceQuality "1"]
[TimeControl "40/5400+30:1800+30"]

{[%evp 11,117,-19,-7,-14,0,-17,12,18,31,16,44,37,37,37,33,42,47,40,51,64,55,-14,-18,-25,-12,-12,21,31,20,25,110,35,88,21,19,0,15,13,27,0,63,72,64,33,43,45,29,8,119,0,0,0,0,0,0,0,0,0,0,0,20,4,14,0,20,20,312,243,747,347,892,850,859,885,883,885,836,794,1100,1000,542,0,831,824,937,526,809,809,1389,698,2358,1843,2137,811,1271,1404,1425,1368,1518,1252,956,764,29952,29946,12823,6406,5693,5118]} 1. c4 {[%emt 0:00:03]} e5 {[%emt 0:00:07]} 2. Nc3 {[%emt 0:00:06]} Nf6 {[%emt 0:00:08]} 3. Nf3 {[%emt 0:00:40]} Nc6 {[%emt 0:00:15]} 4. e4 {[%emt 0:00:11]} Bb4 {[%emt 0:00:31]} 5. d3 {[%emt 0:02:10]} d6 {[%emt 0:00:57]} 6. g3 {[%emt 0:02:40]} Bg4 {[%emt 0:01:50]} 7. Bg2 {[%emt 0:01:18] A28: English Opening: Four Knights Variation.} O-O {[%emt 0:00:43]} 8. h3 {[%emt 0:01:07]} Bh5 {[%emt 0:01:17]} (8... Bxf3 $5 9. Bxf3 Bc5 $11) 9. g4 {[%emt 0:15:57] The position is equal.} Bg6 {[%emt 0:01:30] [#]} 10. Bg5 $146 {[%emt 0:00:07]} ({Predecessor:} 10. O-O a6 11. Be3 Qd7 12. a3 Ba5 13. b4 Bb6 14. Bxb6 cxb6 15. Re1 b5 16. c5 {1-0 (24) Grimault,L (1622)-Tempier,M (1357) Europe Echecs INT 2020}) 10... Qe7 {[%emt 0:03:31]} 11. O-O {[%emt 0:00:46] And now Nd5 would win.} Bxc3 {[%emt 0:02:32]} 12. bxc3 {[%emt 0:00:09]} Nd8 {[%emt 0:04:28]} 13. Nh4 {[%emt 0:02:47]} Ne6 {[%emt 0:01:11]} 14. Be3 {[%emt 0:00:13]} h5 {[%emt 0:06:46]} 15. Nf5 {[%emt 0:03:21]} Qd7 {[%emt 0:02:46]} 16. f4 {[%emt 0:19:39]} (16. f3 $14) 16... exf4 $11 {[%emt 0:04:55]} 17. Bxf4 {[%emt 0:00:03]} Nxf4 {[%emt 0:04:23]} 18. Rxf4 {[%emt 0:00:05]} Rfe8 {[%emt 0:07:22]} 19. g5 {[%emt 0:10:03]} Nh7 {[%emt 0:01:54]} 20. h4 $36 {[%emt 0:00:02][%mdl 2048] Black is under pressure.} f6 {[%emt 0:02:43]} (20... Rab8 $11) 21. gxf6 {[%emt 0:00:24]} (21. Bh3 $1 $16 {[%cal Of5h6] Hoping for Nh6+!} Kh8 22. gxf6 Nxf6 23. Qf3) 21... Nxf6 {[%emt 0:00:18]} (21... Bxf5 $14 22. Rxf5 Nxf6) 22. Ne3 {[%emt 0:00:22]} (22. Bh3 $1 $16 {[%cal Of5h6] Threatens to win with Nh6+!} Bxf5 23. Bxf5) 22... Rf8 {[%emt 0:03:55][%cal Of6g4]} 23. Qd2 {[%emt 0:07:21]} Rae8 {[%emt 0:05:13]} 24. Raf1 {[%emt 0:00:10]} Nh7 {[%emt 0:05:51]} 25. Kh2 {[%emt 0:09:47]} c6 {[%emt 0:02:57]} (25... Rxf4 $11 26. Rxf4 Rf8) 26. Bh3 $14 {[%emt 0:01:32]} Qe7 {[%emt 0:00:32]} 27. Bf5 {[%emt 0:02:10] &Bianco is more active.} Rf6 {[%emt 0:05:49]} 28. Qg2 {[%emt 0:06:01]} Ref8 $1 {[%emt 0:01:41]} 29. Qg3 {[%emt 0:02:12]} (29. d4 $5 {[%cal Rf4f3]}) 29... Be8 {[%emt 0:05:53]} (29... Bxf5 $1 $11 {keeps the balance.} 30. Nxf5 Qd7) 30. Bxh7+ {[%emt 0:08:28]} ({White should play} 30. c5 $16 d5 31. d4 (31. exd5 Qxc5 32. c4 Qa3 $16) 31... dxe4 32. Rxe4) 30... Kxh7 $11 {[%emt 0:00:14]} 31. Qg5 {[%emt 0:01:09][%cal Oc4c5]} Qe5 {[%emt 0:02:56] Against c5} 32. Qxe5 {[%emt 0:01:34]} ({Much worse is} 32. Nf5 Bg6 $15) 32... dxe5 {[%emt 0:00:07]} 33. Rxf6 {[%emt 0:00:45]} Rxf6 {[%emt 0:00:07]} 34. Rxf6 {[%emt 0:01:03]} gxf6 {[%emt 0:00:06][%mdl 4096] Endgame KB-KN} 35. Kg3 {[%emt 0:00:02]} Bd7 {[%emt 0:00:48]} 36. c5 {[%emt 0:01:52]} Be6 {[%emt 0:01:14]} 37. a3 {[%emt 0:00:03]} Kg6 {[%emt 0:00:22]} 38. d4 {[%emt 0:00:29][%cal Bd3d4,Bd4d5][%mdl 32]} b6 $2 {[%emt 0:03:03][%mdl 8192] [#] Black is now going downhill.} (38... Kf7 $11 {and Black is okay.}) 39. d5 $1 $18 {[%emt 0:01:34]} Bd7 {[%emt 0:00:47]} (39... cxd5 40. exd5 Bc8) 40. cxb6 {[%emt 0:00:00]} axb6 {[%emt 0:00:00] [#]} 41. Nc4 $1 {[%emt 0:05:53]} cxd5 {[%emt 0:04:03]} 42. Nxb6 {[%emt 0:00:15]} Bb5 {[%emt 0:00:56]} 43. Nxd5 {[%emt 0:04:10]} Kf7 {[%emt 0:02:26]} 44. Kf3 {[%emt 0:00:17]} Bc4 {[%emt 0:01:18]} 45. Nb6 {[%emt 0:02:30]} Ba6 {[%emt 0:02:32]} 46. Nd5 {[%emt 0:07:01]} (46. a4 $142 Ke6 47. Nd5) 46... Bc4 $1 {[%emt 0:01:11]} 47. Ne3 {[%emt 0:00:02]} Be6 {[%emt 0:01:54]} 48. Ke2 {[%emt 0:02:52] a4 is the strong threat.} Ke7 {[%emt 0:01:24]} 49. Nd5+ {[%emt 0:01:21]} Kf7 {[%emt 0:02:56]} 50. c4 {[%emt 0:00:31]} f5 {[%emt 0:06:15]} 51. exf5 {[%emt 0:00:03]} Bxf5 {[%emt 0:00:12]} 52. Kd2 {[%emt 0:00:02]} (52. a4 $142 Ke8 53. a5 Bg4+ 54. Ke3) 52... Ke6 {[%emt 0:00:37]} 53. Kc3 {[%emt 0:00:15]} Kd6 {[%emt 0:00:34]} 54. Nf6 {[%emt 0:02:40]} Bg6 {[%emt 0:00:41]} 55. a4 {[%emt 0:00:31][%cal Ba3a4,Ba4a5,Ba5a6,Ba6a7][%mdl 32]} Kc5 {[%emt 0:01:24]} 56. a5 {[%emt 0:00:49]} e4 {[%emt 0:01:42]} 57. Nd5 {[%emt 0:03:44]} Be8 {[%emt 0:02:03]} 58. a6 {[%emt 0:02:07] Intending a7 and mate.} Bc6 {[%emt 0:03:31]} 59. a7 {[%emt 0:00:06] Weighted Error Value: White=0.46/Black=0.53} 1-0

[Event "Reykjavik Open 2022"]
[Site "Reykjavik"]
[Date "2022.04.10"]
[Round "6.28"]
[White "Hedman, Erik"]
[Black "Maes, Tibo"]
[Result "1-0"]
[ECO "D37"]
[WhiteElo "2368"]
[BlackElo "1918"]
[Annotator "NA RC"]
[PlyCount "63"]
[EventDate "2022.04.06"]
[EventCountry "ISL"]
[SourceTitle "playchess.com"]
[Source "ChessBase"]
[SourceQuality "1"]
[TimeControl "40/5400+30:1800+30"]

1. Nf3 {[%emt 0:05:25]} d5 {[%emt 0:00:17]} 2. c4 {[%emt 0:00:07]} e6 {[%emt 0:00:26]} 3. d4 {[%emt 0:00:55]} Nf6 {[%emt 0:00:21]} 4. Nc3 {[%emt 0:00:19]} a6 {[%emt 0:01:17]} 5. cxd5 {[%emt 0:01:22]} exd5 {[%emt 0:00:43]} 6. Bf4 {[%emt 0:01:13]} Bd6 {[%emt 0:03:53]} 7. Bg3 {[%emt 0:02:43]} O-O {[%emt 0:02:16]} 8. e3 {[%emt 0:05:12]} c6 {[%emt 0:06:39]} 9. Bd3 {[%emt 0:00:50]} Re8 {[%emt 0:03:05]} 10. Qc2 {[%emt 0:13:13]} h6 {[%emt 0:05:05]} 11. O-O-O {[%emt 0:05:04]} Be6 {[%emt 0:11:39]} 12. Kb1 {[%emt 0:09:34]} a5 {[%emt 0:09:17]} 13. Bxd6 {[%emt 0:04:08]} Qxd6 {[%emt 0:00:10]} 14. h3 {[%emt 0:00:12]} Na6 {[%emt 0:03:47]} 15. Bxa6 {[%emt 0:09:49]} Rxa6 {[%emt 0:02:43]} 16. g4 {[%emt 0:01:31]} Ne4 {[%emt 0:04:22]} 17. Ka1 {[%emt 0:06:48]} Qd8 {[%emt 0:08:03]} 18. Ne5 {[%emt 0:01:15]} Qh4 {[%emt 0:07:40]} 19. Nd3 {[%emt 0:09:51]} Ra7 {[%emt 0:08:46]} 20. Nxe4 {[%emt 0:05:01]} dxe4 {[%emt 0:00:05]} 21. Nf4 {[%emt 0:00:03]} Qd8 {[%emt 0:04:02]} 22. Rhg1 {[%emt 0:01:44]} g6 {[%emt 0:02:27]} 23. Rd2 {[%emt 0:03:03]} Bd5 {[%emt 0:00:50]} 24. Rc1 {[%emt 0:02:24]} Ra8 {[%emt 0:02:21]} 25. Qd1 {[%emt 0:00:05]} Rc8 {[%emt 0:00:48]} 26. Rdc2 {[%emt 0:01:24]} Qd7 {[%emt 0:01:59]} 27. Rc3 {[%emt 0:02:28]} Kg7 {[%emt 0:07:25]} 28. Qc2 {[%emt 0:00:41]} Re7 {[%emt 0:02:15]} 29. Rc5 {[%emt 0:02:47]} Ra8 {[%emt 0:00:57]} 30. Nxd5 {[%emt 0:00:14]} cxd5 {[%emt 0:00:04]} 31. Qb3 {[%emt 0:00:11]} Rd8 {[%emt 0:01:26]} 32. Rxa5 {[%emt 0:01:49]} 1-0

[Event "Reykjavik Open 2022"]
[Site "Reykjavik"]
[Date "2022.04.10"]
[Round "6.29"]
[White "Briem, Stephan"]
[Black "Rosen, Eric"]
[Result "0-1"]
[ECO "E14"]
[WhiteElo "2039"]
[BlackElo "2356"]
[Annotator "RC"]
[PlyCount "166"]
[EventDate "2022.04.06"]
[EventCountry "ISL"]
[SourceTitle "playchess.com"]
[Source "ChessBase"]
[SourceQuality "1"]
[TimeControl "40/5400+30:1800+30"]

1. d4 {[%emt 0:00:03]} Nf6 {[%emt 0:00:28]} 2. Nf3 {[%emt 0:00:44]} e6 {[%emt 0:01:56]} 3. e3 {[%emt 0:01:34]} b6 {[%emt 0:00:44]} 4. c4 {[%emt 0:01:39]} Bb7 {[%emt 0:00:51]} 5. Bd3 {[%emt 0:01:58]} d5 {[%emt 0:02:10]} 6. cxd5 {[%emt 0:04:45]} exd5 {[%emt 0:00:43]} 7. Nc3 {[%emt 0:00:53]} Nbd7 {[%emt 0:02:06]} 8. O-O {[%emt 0:00:56]} Bd6 {[%emt 0:03:09]} 9. b3 {[%emt 0:09:13]} a6 {[%emt 0:03:20]} 10. Bb2 {[%emt 0:00:30]} O-O {[%emt 0:00:22]} 11. Rc1 {[%emt 0:00:55]} Re8 {[%emt 0:02:17]} 12. Qc2 {[%emt 0:16:22]} Qe7 {[%emt 0:06:02]} 13. Ne2 {[%emt 0:01:05]} Ne4 {[%emt 0:04:51]} 14. Ne5 {[%emt 0:04:30]} c5 {[%emt 0:15:05]} 15. Bxe4 {[%emt 0:17:05]} dxe4 {[%emt 0:00:45]} 16. Nxd7 {[%emt 0:00:11]} Qxd7 {[%emt 0:00:20]} 17. dxc5 {[%emt 0:00:32]} Bxc5 {[%emt 0:01:04]} 18. Qc3 {[%emt 0:03:23]} Qg4 {[%emt 0:03:44]} 19. h3 {[%emt 0:08:13]} Qg5 {[%emt 0:00:49]} 20. Rfd1 {[%emt 0:02:07]} Rac8 {[%emt 0:05:29]} 21. b4 {[%emt 0:06:44]} Bf8 {[%emt 0:04:28]} 22. Qd2 {[%emt 0:08:12]} Red8 {[%emt 0:05:33]} 23. Bd4 {[%emt 0:01:20]} Bd6 {[%emt 0:05:09]} 24. Qb2 {[%emt 0:01:59]} b5 {[%emt 0:02:58]} 25. Bb6 {[%emt 0:02:04]} Rxc1 {[%emt 0:01:42]} 26. Qxc1 {[%emt 0:00:39]} Rc8 {[%emt 0:02:36]} 27. Qxc8+ {[%emt 0:01:04]} Bxc8 {[%emt 0:00:29]} 28. Rxd6 {[%emt 0:00:07]} h5 {[%emt 0:05:18]} 29. Rd8+ {[%emt 0:00:03]} Kh7 {[%emt 0:00:03]} 30. Rxc8 {[%emt 0:00:07]} Qd5 {[%emt 0:00:14]} 31. Nd4 {[%emt 0:02:58]} Qxa2 {[%emt 0:00:02]} 32. Ba5 {[%emt 0:03:11]} Qa1+ {[%emt 0:02:30]} 33. Kh2 {[%emt 0:00:01]} h4 {[%emt 0:00:04]} 34. Rc5 {[%emt 0:01:20]} g6 {[%emt 0:00:51]} 35. Re5 {[%emt 0:00:50]} f5 {[%emt 0:04:59]} 36. Re7+ {[%emt 0:00:30]} Kg8 {[%emt 0:00:01]} 37. Rc7 {[%emt 0:00:31]} f4 {[%emt 0:05:17]} 38. Rc2 {[%emt 0:00:37]} g5 {[%emt 0:06:59]} 39. Bd8 {[%emt 0:00:27]} fxe3 {[%emt 0:01:34]} 40. fxe3 {[%emt 0:00:00]} Qe1 {[%emt 0:00:00]} 41. Nf5 {[%emt 0:08:31]} Qxb4 {[%emt 0:11:39]} 42. Bxg5 {[%emt 0:02:04]} Kf7 {[%emt 0:01:47]} 43. Rc6 {[%emt 0:07:56]} a5 {[%emt 0:02:44]} 44. Nh6+ {[%emt 0:05:08]} Ke8 {[%emt 0:02:23]} 45. Rc7 {[%emt 0:00:10]} Qd6+ {[%emt 0:08:39]} 46. Bf4 {[%emt 0:00:02]} Qg6 {[%emt 0:01:30]} 47. Nf7 {[%emt 0:02:51]} b4 {[%emt 0:01:34]} 48. Bd6 {[%emt 0:02:56]} Qe6 {[%emt 0:00:55]} 49. Re7+ {[%emt 0:01:39]} Qxe7 {[%emt 0:00:07]} 50. Bxe7 {[%emt 0:00:02]} Kxe7 {[%emt 0:04:03]} 51. Ne5 {[%emt 0:00:03]} b3 {[%emt 0:00:09]} 52. Nc4 {[%emt 0:00:26]} a4 {[%emt 0:01:13]} 53. g3 {[%emt 0:03:14]} b2 {[%emt 0:00:33]} 54. Na3 {[%emt 0:00:03]} hxg3+ {[%emt 0:00:37]} 55. Kxg3 {[%emt 0:00:02]} Kd6 {[%emt 0:00:13]} 56. h4 {[%emt 0:02:41]} Kc5 {[%emt 0:00:01]} 57. h5 {[%emt 0:00:34]} Kb4 {[%emt 0:00:05]} 58. h6 {[%emt 0:01:01]} Kxa3 {[%emt 0:00:01]} 59. h7 {[%emt 0:00:05]} b1=Q {[%emt 0:00:07]} 60. h8=Q {[%emt 0:00:06]} Qb2 {[%emt 0:01:20]} 61. Qe8 {[%emt 0:01:25]} Qb4 {[%emt 0:01:27]} 62. Qe6 {[%emt 0:00:20]} Kb2 {[%emt 0:00:28]} 63. Qe5+ {[%emt 0:00:36]} Kb1 {[%emt 0:00:17]} 64. Qd5 {[%emt 0:00:34]} a3 {[%emt 0:02:27]} 65. Qd1+ {[%emt 0:00:18]} Kb2 {[%emt 0:00:02]} 66. Qe2+ {[%emt 0:00:13]} Kc1 {[%emt 0:00:06]} 67. Kf4 {[%emt 0:00:56]} Qc3 {[%emt 0:01:44]} 68. Qf1+ {[%emt 0:00:35]} Kb2 {[%emt 0:00:14]} 69. Qe2+ {[%emt 0:00:21]} Qc2 {[%emt 0:00:15]} 70. Qb5+ {[%emt 0:00:11]} Kc1 {[%emt 0:00:25]} 71. Qf1+ {[%emt 0:00:13]} Kd2 {[%emt 0:00:14]} 72. Qf2+ {[%emt 0:01:09]} Kc3 {[%emt 0:00:20]} 73. Qe1+ {[%emt 0:00:19]} Kb3 {[%emt 0:00:06]} 74. Qa5 {[%emt 0:00:34]} a2 {[%emt 0:00:42]} 75. Qb6+ {[%emt 0:00:33]} Ka3 {[%emt 0:00:22]} 76. Qa5+ {[%emt 0:00:10]} Kb2 {[%emt 0:00:29]} 77. Qb4+ {[%emt 0:00:11]} Qb3 {[%emt 0:00:57]} 78. Qd2+ {[%emt 0:00:35]} Kb1 {[%emt 0:00:05]} 79. Qe1+ {[%emt 0:00:14]} Kc2 {[%emt 0:00:05]} 80. Qe2+ {[%emt 0:00:32]} Kc3 {[%emt 0:00:02]} 81. Qe1+ {[%emt 0:00:17]} Kc4 {[%emt 0:00:49]} 82. Qa5 {[%emt 0:01:40]} Qb8+ {[%emt 0:00:54]} 83. Kf5 {[%emt 0:00:32]} Qb5+ {[%emt 0:00:19]} 0-1

[Event "Reykjavik Open 2022"]
[Site "Reykjavik"]
[Date "2022.04.10"]
[Round "6.30"]
[White "Soham Das"]
[Black "Unhjem, Bjorn Robert Lovoll"]
[Result "1-0"]
[ECO "D00"]
[WhiteElo "2330"]
[BlackElo "1911"]
[Annotator "NA RC"]
[PlyCount "81"]
[EventDate "2022.04.06"]
[EventCountry "ISL"]
[SourceTitle "playchess.com"]
[Source "ChessBase"]
[SourceQuality "1"]
[TimeControl "40/5400+30:1800+30"]

1. d4 {[%emt 0:15:06]} Nf6 {[%emt 0:00:11]} 2. Bf4 {[%emt 0:00:03]} d5 {[%emt 0:01:09]} 3. e3 {[%emt 0:00:06]} c5 {[%emt 0:00:40]} 4. c3 {[%emt 0:00:05]} Nc6 {[%emt 0:00:15]} 5. Nd2 {[%emt 0:00:08]} Bf5 {[%emt 0:02:20]} 6. Qb3 {[%emt 0:08:26]} Qd7 {[%emt 0:12:05]} 7. Ngf3 {[%emt 0:00:24]} a6 {[%emt 0:00:12]} 8. dxc5 {[%emt 0:05:17]} Nh5 {[%emt 0:01:49]} 9. Ne5 {[%emt 0:13:00]} Nxe5 {[%emt 0:00:32]} 10. Bxe5 {[%emt 0:00:53]} f6 {[%emt 0:00:33]} 11. Be2 {[%emt 0:02:25]} fxe5 {[%emt 0:02:22]} 12. Bxh5+ {[%emt 0:02:22]} g6 {[%emt 0:00:06]} 13. Be2 {[%emt 0:01:01]} Bg7 {[%emt 0:00:51]} 14. Rd1 {[%emt 0:01:07]} Be6 {[%emt 0:01:50]} 15. O-O {[%emt 0:02:39]} Rc8 {[%emt 0:02:17]} 16. Qa3 {[%emt 0:04:39]} Qc7 {[%emt 0:00:40]} 17. b4 {[%emt 0:00:59]} O-O {[%emt 0:00:33]} 18. e4 {[%emt 0:00:46]} Kh8 {[%emt 0:02:25]} 19. exd5 {[%emt 0:14:59]} Bxd5 {[%emt 0:00:08]} 20. c4 {[%emt 0:00:03]} Bc6 {[%emt 0:01:16]} 21. Bf3 {[%emt 0:01:21]} Bxf3 {[%emt 0:01:05]} 22. Nxf3 {[%emt 0:03:12]} e4 {[%emt 0:11:20]} 23. Ng5 {[%emt 0:00:26]} Qe5 {[%emt 0:00:07]} 24. Rd5 {[%emt 0:02:45]} Qc3 {[%emt 0:00:29]} 25. Qxc3 {[%emt 0:02:32]} Bxc3 {[%emt 0:00:07]} 26. Rb1 {[%emt 0:02:47]} e5 {[%emt 0:03:10]} 27. Nxe4 {[%emt 0:01:26]} Bd4 {[%emt 0:00:17]} 28. Kh1 {[%emt 0:00:06]} Bxf2 {[%emt 0:00:43]} 29. Rxe5 {[%emt 0:00:16]} Bd4 {[%emt 0:02:46]} 30. Rd5 {[%emt 0:03:12]} Be3 {[%emt 0:00:36]} 31. Rd3 {[%emt 0:01:26]} Bf2 {[%emt 0:00:38]} 32. Rf3 {[%emt 0:00:29]} Bd4 {[%emt 0:01:17]} 33. Rd1 {[%emt 0:00:32]} Rxf3 {[%emt 0:02:11]} 34. gxf3 {[%emt 0:00:03]} Be5 {[%emt 0:00:29]} 35. Rd7 {[%emt 0:00:35]} b6 {[%emt 0:01:52]} 36. Ng5 {[%emt 0:01:47]} Bf4 {[%emt 0:01:40]} 37. Ne6 {[%emt 0:00:18]} Be3 {[%emt 0:00:11]} 38. cxb6 {[%emt 0:00:16]} Bxb6 {[%emt 0:01:08]} 39. c5 {[%emt 0:00:02]} Re8 {[%emt 0:00:07]} 40. cxb6 {[%emt 0:00:00]} Rxe6 {[%emt 0:00:00]} 41. Rd8+ {[%emt 0:00:15]} 1-0